fUST/lending_fUST_20240503
["ID","MTS","AMOUNT","RATE_DAILY","PERIOD"]
[325304963,1714687928722,-500.0,0.00041095,7]
[325304964,1714687928745,-504.66926294,0.00041095,7]
[325304965,1714687928767,-500.0,0.00041095,7]
[325304966,1714687928790,-500.0,0.00041095,7]
[325304967,1714687928814,-1000.0,0.00041095,7]
[325304968,1714687928837,-500.0,0.00041095,7]
[325304969,1714687928860,-500.0,0.00041095,7]
[325304970,1714687928883,-500.0,0.00041095,7]
[325304971,1714687928908,-588.28,0.00041095,7]
[325304972,1714687928931,-500.0,0.00041095,7]
[325304973,1714687928954,-500.0,0.00041095,7]
[325304974,1714687928978,-500.0,0.00041095,7]
[325304975,1714687929080,-500.0,0.00041095,7]
[325304976,1714687929127,-518.90594682,0.00041095,7]
[325304977,1714687929152,-500.0,0.00041095,7]
[325304978,1714687929177,-500.0,0.00041095,7]
[325304979,1714687929201,-500.0,0.00041095,7]
[325304980,1714687929226,-552.54,0.00041095,7]
[325304981,1714687929252,-500.0,0.00041095,7]
[325304982,1714687929277,-500.0,0.00041095,7]
[325304983,1714687929307,-500.0,0.00041095,7]
[325304984,1714687929334,-597.10197168,0.00041095,7]
[325304985,1714687929359,-500.0,0.00041095,7]
[325304986,1714687929384,-500.0,0.00041095,7]
[325304987,1714687929408,-610.33,0.00041095,7]
[325304988,1714687929432,-500.0,0.00041095,7]
[325304989,1714687929456,-500.0,0.00041095,7]
[325304990,1714687929480,-512.5333098,0.00041095,7]
[325304991,1714687929504,-560.41,0.00041095,7]
[325304992,1714687929528,-500.0,0.00041095,7]
[325304993,1714687929555,-413.71263575,0.00041095,7]
[325304994,1714687929579,-500.0,0.00041095,7]
[325304995,1714687929602,-500.0,0.00041095,7]
[325304996,1714687929626,-295.55039369,0.00041095,7]
[325304997,1714687929650,-500.0,0.00041095,7]
[325304998,1714687929673,-503.15517708,0.00041095,7]
[325304999,1714687929698,-629.43,0.00041095,7]
[325305000,1714687929722,-1410.95,0.00041095,7]
[325305001,1714687929746,-500.0,0.00041095,7]
[325305002,1714687929770,-500.0,0.00041095,7]
[325305003,1714687929797,-500.0,0.00041095,7]
[325305004,1714687929821,-500.0,0.00041095,7]
[325305005,1714687929845,-500.0,0.00041095,7]
[325305006,1714687929872,-572.64,0.00041095,7]
[325305007,1714687929897,-435.87688675,0.00041095,7]
[325305008,1714687929922,-500.0,0.00041095,7]
[325305009,1714687929946,-3827.01,0.00041095,7]
[325305010,1714687929970,-500.0,0.00041095,7]
[325305011,1714687929995,-500.0,0.00041095,7]
[325305012,1714687930020,-370.45166916,0.00041095,7]
[325305013,1714687930053,-190.84018778,0.00041095,7]
[325305014,1714687930077,-500.0,0.00041095,7]
[325305015,1714687930101,-500.0,0.00041095,7]
[325305016,1714687930128,-500.0,0.00041095,7]
[325305017,1714687930152,-500.0,0.00041095,7]
[325305018,1714687930178,-500.0,0.00041095,7]
[325305019,1714687930204,-500.0,0.00041095,7]
[325305020,1714687930230,-513.78525612,0.00041095,7]
[325305021,1714687930255,-500.0,0.00041095,7]
[325305022,1714687930280,-500.0,0.00041095,7]
[325305023,1714687930307,-500.0,0.00041095,7]
[325305024,1714687930330,-751.67,0.00041095,7]
[325305025,1714687930354,-500.0,0.00041095,7]
[325305026,1714687930381,-201.25598417,0.00041095,7]
[325305027,1714687930405,-500.0,0.00041095,7]
[325305028,1714687930428,-500.0,0.00041095,7]
[325305029,1714687930452,-500.0,0.00041095,7]
[325305030,1714687930475,-500.0,0.00041095,7]
[325305031,1714687930499,-500.0,0.00041095,7]
[325305032,1714687930522,-500.0,0.00041095,7]
[325305033,1714687930550,-500.0,0.00041095,7]
[325305034,1714687930575,-500.0,0.00041095,7]
[325305035,1714687930599,-2839.42,0.00041095,7]
[325305036,1714687930622,-500.0,0.00041095,7]
[325305037,1714687930645,-500.0,0.00041095,7]
[325305038,1714687930671,-500.0,0.00041095,7]
[325305039,1714687930694,-500.0,0.00041095,7]
[325305040,1714687930718,-500.0,0.00041095,7]
[325305041,1714687930743,-500.0,0.00041095,7]
[325305042,1714687930767,-208.4377161,0.00041095,7]
[325305043,1714687930790,-500.0,0.00041095,7]
[325305044,1714687930818,-500.0,0.00041095,7]
[325305045,1714687930842,-500.0,0.00041095,7]
[325305046,1714687930867,-500.0,0.00041095,7]
[325305047,1714687930890,-500.0,0.00041095,7]
[325305048,1714687930915,-500.0,0.00041095,7]
[325305049,1714687930940,-500.0,0.00041095,7]
[325305050,1714687930964,-500.0,0.00041095,7]
[325305051,1714687930992,-500.0,0.00041095,7]
[325305052,1714687931017,-500.0,0.00041095,7]
[325305053,1714687931044,-500.0,0.00041095,7]
[325305054,1714687931069,-500.0,0.00041095,7]
[325305055,1714687931211,-535.1,0.00041095,7]
[325305056,1714687931236,-505.32500103,0.00041095,7]
[325305057,1714687931260,-500.0,0.00041095,7]
[325305058,1714687931283,-945.22,0.00041095,7]
[325305059,1714687931307,-500.0,0.00041095,7]
[325305060,1714687931331,-500.0,0.00041095,7]
[325305061,1714687931354,-612.1,0.00041095,7]
[325305062,1714687931376,-1430.83,0.00041095,7]
[325305063,1714687931399,-500.0,0.00041095,7]
[325305064,1714687931421,-500.0,0.00041095,7]
[325305065,1714687931443,-500.0,0.00041095,7]
[325305066,1714687931465,-500.0,0.00041095,7]
[325305067,1714687931487,-500.0,0.00041095,7]
[325305068,1714687931509,-1686.89,0.00041095,7]
[325305069,1714687931532,-500.0,0.00041095,7]
[325305070,1714687931564,-606.54665567,0.00041095,7]
[325305071,1714687931587,-500.0,0.00041095,7]
[325305072,1714687931610,-500.0,0.00041095,7]
[325305073,1714687931632,-500.0,0.00041095,7]
[325305074,1714687931655,-500.0,0.00041095,7]
[325305075,1714687931677,-500.0,0.00041095,7]
[325305076,1714687931701,-503.88496474,0.00041095,7]
[325305077,1714687931723,-500.0,0.00041095,7]
[325305078,1714687931744,-509.73007224,0.00041095,7]
[325305079,1714687931767,-509.53769193,0.00041095,7]
[325305080,1714687931790,-500.0,0.00041095,7]
[325305081,1714687931816,-524.47,0.00041095,7]
[325305082,1714687931839,-597.08931537,0.00041095,7]
[325305083,1714687931862,-500.0,0.00041095,7]
[325305084,1714687931887,-500.0,0.00041095,7]
[325305085,1714687931910,-569.13512667,0.00041095,7]
[325305086,1714687931934,-500.0,0.00041095,7]
[325305087,1714687931959,-853.04,0.00041095,7]
[325305088,1714687931982,-500.0,0.00041095,7]
[325305089,1714687932006,-154.11637413,0.00041095,7]
[325305090,1714687932029,-3708.16,0.00041095,7]
[325305091,1714687932054,-500.0,0.00041095,7]
[325305092,1714687932077,-500.58464083,0.00041095,7]
[325305093,1714687932101,-500.0,0.00041095,7]
[325305094,1714687932126,-500.0,0.00041095,7]
[325305095,1714687932152,-500.0,0.00041095,7]
[325305096,1714687932176,-500.0,0.00041095,7]
[325305097,1714687932201,-500.0,0.00041095,7]
[325305098,1714687932225,-500.0,0.00041095,7]
[325305099,1714687932250,-635.48415198,0.00041095,7]
[325305100,1714687932274,-500.0,0.00041095,7]
[325305101,1714687932299,-361.63053804,0.00041095,7]
[325305102,1714687932323,-500.0,0.00041095,7]
[325305103,1714687932347,-500.0,0.00041095,7]
[325305104,1714687932370,-500.0,0.00041095,7]
[325305105,1714687932393,-271.44257389,0.00041095,7]
[325305106,1714687932416,-500.0,0.00041095,7]
[325305107,1714687932439,-500.0,0.00041095,7]
[325305108,1714687932461,-607.98,0.00041095,7]
[325305109,1714687932485,-500.0,0.00041095,7]
[325305110,1714687932508,-376.02390411,0.00041095,7]
[325305111,1714687932532,-500.0,0.00041095,7]
[325305112,1714687932559,-500.0,0.00041095,7]
[325305113,1714687932584,-500.0,0.00041095,7]
[325305114,1714687932608,-500.0,0.00041095,7]
[325305115,1714687932631,-569.39,0.00041095,7]
[325305116,1714687932655,-510.93480759,0.00041095,7]
[325305117,1714687932678,-500.0,0.00041095,7]
[325305118,1714687932702,-5092.41,0.00041095,7]
[325305119,1714687932726,-956.34,0.00041095,7]
[325305120,1714687932749,-500.0,0.00041095,7]
[325305121,1714687932773,-500.0,0.00041095,7]
[325305122,1714687932798,-506.47093636,0.00041095,7]
[325305123,1714687932821,-500.0,0.00041095,7]
[325305124,1714687932844,-500.0,0.00041095,7]
[325305125,1714687932867,-500.0,0.00041095,7]
[325305126,1714687932889,-4419.56,0.00041095,7]
[325305127,1714687932913,-500.0,0.00041095,7]
[325305128,1714687932936,-500.0,0.00041095,7]
[325305129,1714687932959,-500.0,0.00041095,7]
[325305130,1714687932982,-516.64,0.00041095,7]
[325305131,1714687933115,-308.57335438,0.00041095,7]
[325305132,1714687933144,-300.0,0.00041095,7]
[325305133,1714687933169,-601.11,0.00041095,7]
[325305134,1714687933196,-500.0,0.00041095,7]
[325305135,1714687933223,-666.87,0.00041095,7]
[325305136,1714687933248,-500.0,0.00041095,7]
[325305137,1714687933272,-500.0,0.00041095,7]
[325305138,1714687933296,-500.0,0.00041095,7]
[325305139,1714687933320,-500.0,0.00041095,7]
[325305140,1714687933345,-500.0,0.00041095,7]
[325305141,1714687933369,-500.0,0.00041095,7]
[325305142,1714687933394,-500.0,0.00041095,7]
[325305143,1714687933417,-500.0,0.00041095,7]
[325305144,1714687933441,-255.21078209,0.00041095,7]
[325305145,1714687933464,-500.0,0.00041095,7]
[325305146,1714687933489,-500.0,0.00041095,7]
[325305147,1714687933514,-500.0,0.00041095,7]
[325305148,1714687933538,-500.0,0.00041095,7]
[325305149,1714687933568,-500.0,0.00041095,7]
[325305150,1714687933599,-500.0,0.00041095,7]
[325305151,1714687933626,-500.0,0.00041095,7]
[325305152,1714687933651,-500.0,0.00041095,7]
[325305153,1714687933676,-316.4562088,0.00041095,7]
[325305154,1714687933701,-618.75,0.00041095,7]
[325305155,1714687933725,-500.0,0.00041095,7]
[325305156,1714687933749,-500.0,0.00041095,7]
[325305157,1714687933773,-500.0,0.00041095,7]
[325305158,1714687933799,-154.79876161,0.00041095,7]
[325305159,1714687933823,-500.0,0.00041095,7]
[325305160,1714687933846,-1086.18,0.00041095,7]
[325305161,1714687933870,-500.0,0.00041095,7]
[325305162,1714687933894,-500.0,0.00041095,7]
[325305163,1714687933919,-500.0,0.00041095,7]
[325305164,1714687933943,-500.0,0.00041095,7]
[325305165,1714687933975,-500.0,0.00041095,7]
[325305166,1714687934000,-500.0,0.00041095,7]
[325305167,1714687934025,-465.15090093,0.00041095,7]
[325305168,1714687934051,-612.26284867,0.00041095,7]
[325305169,1714687934076,-1422.94,0.00041095,7]
[325305170,1714687934104,-500.0,0.00041095,7]
[325305171,1714687934130,-500.0,0.00041095,7]
[325305172,1714687934159,-500.0,0.00041095,7]
[325305173,1714687934185,-500.0,0.00041095,7]
[325305174,1714687934211,-500.0,0.00041095,7]
[325305175,1714687934239,-500.0,0.00041095,7]
[325305176,1714687934264,-500.0,0.00041095,7]
[325305177,1714687934290,-500.0,0.00041095,7]
[325305178,1714687934316,-500.0,0.00041095,7]
[325305179,1714687934340,-490.36431101,0.00041095,7]
[325305180,1714687934365,-500.0,0.00041095,7]
[325305181,1714687934390,-500.0,0.00041095,7]
[325305182,1714687934415,-505.8506066,0.00041095,7]
[325305183,1714687934439,-500.0,0.00041095,7]
[325305184,1714687934469,-500.0,0.00041095,7]
[325305185,1714687934496,-500.0,0.00041095,7]
[325305186,1714687934523,-280.67001164,0.00041095,7]
[325305187,1714687934549,-500.0,0.00041095,7]
[325305188,1714687934573,-500.0,0.00041095,7]
[325305189,1714687934597,-500.0,0.00041095,7]
[325305190,1714687934620,-531.0,0.00041095,7]
[325305191,1714687934644,-500.0,0.00041095,7]
[325305192,1714687934669,-500.0,0.00041095,7]
[325305193,1714687934694,-531.22,0.00041095,7]
[325305194,1714687934718,-506.67473698,0.00041095,7]
[325305195,1714687934743,-517.47744296,0.00041095,7]
[325305196,1714687934767,-500.0,0.00041095,7]
[325305197,1714687934794,-2153.08,0.00041095,7]
[325305198,1714687934821,-500.0,0.00041095,7]
[325305199,1714687934846,-500.0,0.00041095,7]
[325305200,1714687934872,-602.69,0.00041095,7]
[325305201,1714687934896,-500.0,0.00041095,7]
[325305202,1714687934920,-500.0,0.00041095,7]
[325305203,1714687934946,-500.0,0.00041095,7]
[325305204,1714687934970,-500.0,0.00041095,7]
[325305205,1714687935104,-500.0,0.00041095,7]
[325305206,1714687935133,-500.0,0.00041095,7]
[325305207,1714687935157,-113.62843181,0.00041095,7]
[325305208,1714687935492,362.43735535,9.999e-05,2]
[325305209,1714687935903,154.81422293,0.000137,2]
[325305210,1714687935938,1880.38106001,9.998e-05,2]
[325305211,1714687935980,154.81422293,9.998e-05,2]
[325305212,1714687953999,919.7696381,0.00020145,2]
[325305213,1714687961965,7855.44540772,0.00020141,2]
[325305215,1714687984178,1313.56424433,0.0001,2]
[325305218,1714688009772,189.0935612,0.00020141,2]
[325305219,1714688026550,2238.73495717,0.00020121,2]
[325305220,1714688038443,3898.7141677,0.00019219,2]
[325305221,1714688053545,2496.6764195,0.00020116,2]
[325305222,1714688055556,2496.67641949,0.00020117,2]
[325305223,1714688057312,201.16312326,0.00020141,2]
[325305224,1714688057537,2496.67641949,0.00020118,2]
[325305225,1714688059630,2496.67641949,0.00020119,2]
[325305226,1714688061536,2496.67641949,0.0002012,2]
[325305228,1714688111998,281.46,0.00020198,3]
[325305229,1714688122710,844.42,0.00020197,3]
[325305230,1714688131171,235.89828702,0.00020201,2]
[325305231,1714688132836,446.7647407,0.00020201,2]
[325305232,1714688133354,330.1061491,0.00020201,2]
[325305233,1714688134697,409.39448055,0.00020201,2]
[325305234,1714688134753,379.5779271,0.00020201,2]
[325305235,1714688136003,1091.92588684,0.00020201,2]
[325305236,1714688138330,2782.52037911,0.00020201,2]
[325305237,1714688139002,291.78337111,0.00020201,2]
[325305238,1714688139935,80000.0,0.00020201,2]
[325305239,1714688141168,154.79876161,0.00020201,2]
[325305240,1714688141715,565.22621102,0.00020201,2]
[325305241,1714688142796,513.62826991,0.00020201,2]
[325305242,1714688143100,2627.42239968,0.00020201,2]
[325305243,1714688144512,67447.80014634,0.00020201,2]
[325305244,1714688145175,281.83758379,0.00020201,2]
[325305245,1714688146836,423.28933019,0.00020201,2]
[325305246,1714688148709,412.36728546,0.00020201,2]
[325305247,1714688149813,1880.38106001,0.00020201,2]
[325305248,1714688150002,1091.92588684,0.00020201,2]
[325305249,1714688150117,939.76545707,0.00020201,2]
[325305250,1714688150545,20203.63437207,0.00020201,2]
[325305251,1714688150599,891.13661831,0.00020201,2]
[325305252,1714688151671,200.16265129,0.00020201,2]
[325305253,1714688151745,521.00646722,0.00020201,2]
[325305254,1714688151972,154.79876161,0.00020201,2]
[325305255,1714688152198,154.79876161,0.00020201,2]
[325305256,1714688152315,154.79876161,0.00020201,2]
[325305257,1714688152401,2393.38163531,0.00020201,2]
[325305258,1714688153613,166.01182732,0.00020201,2]
[325305259,1714688153675,330.1061491,0.00020201,2]
[325305260,1714688154091,989.961457,0.00019206,2]
[325305261,1714688155314,154.79876161,0.00020201,4]
[325305262,1714688155718,565.22621102,0.00020201,2]
[325305263,1714688156829,550.24541163,0.00020201,2]
[325305264,1714688158122,7876.33653411,0.00020201,2]
[325305265,1714688158320,2782.52037911,0.00020201,2]
[325305266,1714688159094,1155.9541754,0.00020201,2]
[325305267,1714688159154,195.92679236,0.00020201,2]
[325305268,1714688159876,154.79876161,0.00020201,2]
[325305269,1714688159934,80000.0,0.00020201,2]
[325305270,1714688160594,157.53270365,0.00020201,2]
[325305271,1714688160846,1892.53392773,0.00020201,2]
[325305272,1714688162288,272.94598281,0.00020201,2]
[325305273,1714688163578,158.01446209,0.00020201,2]
[325305274,1714688164214,154.79876161,0.00020201,2]
[325305275,1714688164248,284.0133868,0.00020201,2]
[325305276,1714688164278,1577.20853771,0.00020201,2]
[325305277,1714688164313,469.0831444,0.00020201,2]
[325305278,1714688164521,67447.80014634,0.00020201,2]
[325305279,1714688164556,604.05271005,0.00020201,2]
[325305280,1714688164739,527.05896574,0.00020201,2]
[325305281,1714688166118,939.76545707,0.00020201,2]
[325305282,1714688166377,2102.02562717,0.00020201,2]
[325305283,1714688166548,475.3846747,0.00020201,2]
[325305284,1714688166944,319.72,0.0002,2]
[325305285,1714688167309,208.17446102,0.00020201,2]
[325305286,1714688167340,20203.63437207,0.00020201,2]
[325305287,1714688168396,2393.38163531,0.00020201,2]
[325305288,1714688168597,891.13661831,0.00020201,2]
[325305289,1714688169311,154.79876161,0.00020201,4]
[325305290,1714688169567,156.16833798,0.00020201,2]
[325305291,1714688169739,521.00646722,0.00020201,2]
[325305292,1714688169822,1880.38106001,0.00020201,2]
[325305293,1714688170171,154.79876161,0.00020201,2]
[325305294,1714688170317,154.79876161,0.00020201,2]
[325305295,1714688170832,159.10381523,0.00020201,2]
[325305296,1714688172014,580.28086464,0.00020201,2]
[325305297,1714688172637,5811.26837333,0.00020201,2]
[325305298,1714688173627,981.99841714,0.00020201,2]
[325305299,1714688173866,59236.59789083,0.00020201,2]
[325305300,1714688174567,730.93144096,0.00020201,2]
[325305301,1714688174608,189.45958247,0.00020201,2]
[325305302,1714688174642,200.15284538,0.00020201,2]
[325305303,1714688174735,308.93521701,0.00020201,2]
[325305304,1714688174802,1892.53392773,0.00020201,2]
[325305305,1714688175355,330.1061491,0.00020201,2]
[325305306,1714688175800,154.9063322,0.00020201,2]
[325305307,1714688177128,241.79685319,0.00020201,2]
[325305308,1714688177727,565.22621102,0.00020201,2]
[325305309,1714688177848,2151.16096719,0.00020201,2]
[325305310,1714688178244,1577.20853771,0.00020201,2]
[325305311,1714688178365,59236.59789083,0.00020201,2]
[325305312,1714688178558,154.79876161,0.00020201,2]
[325305313,1714688178756,206.35754322,0.00020201,2]
[325305314,1714688179596,159.49519924,0.00020201,2]
[325305315,1714688180247,7875.36127702,0.00020201,2]
[325305316,1714688180278,178.63374525,0.00020201,2]
[325305317,1714688180319,2782.52037911,0.00020201,2]
[325305318,1714688180563,604.05271005,0.00020201,2]
[325305319,1714688181674,2457.53196037,0.00020201,2]
[325305320,1714688182055,164.15031507,0.00020201,2]
[325305321,1714688182111,939.76545707,0.00020201,2]
[325305322,1714688182242,469.0831444,0.00020201,2]
[325305323,1714688182280,272.94598281,0.00020201,2]
[325305324,1714688182533,67447.80014634,0.00020201,2]
[325305325,1714688182616,475.3846747,0.00020201,2]
[325305326,1714688182646,473.07523748,0.00020201,2]
[325305327,1714688182747,527.05896574,0.00020201,2]
[325305328,1714688183303,208.17446102,0.00020201,2]
[325305329,1714688183940,80000.0,0.00020201,2]
[325305330,1714688183974,193.89409139,0.00020201,2]
[325305331,1714688184117,183.04235091,0.00020201,2]
[325305332,1714688184381,2102.02562717,0.000202,2]
[325305333,1714688184686,20203.63437207,0.00020201,2]
[325305334,1714688185313,241.12597868,0.000202,4]
[325305335,1714688185737,377.65453662,0.000202,2]
[325305336,1714688186639,5811.26837333,0.00020201,2]
[325305337,1714688186689,154.79876161,0.000202,2]
[325305338,1714688186720,348.01193654,0.00020201,2]
[325305339,1714688187815,690.06483467,0.00020201,2]
[325305340,1714688188292,154.79876161,0.00020201,2]
[325305341,1714688188762,313.04584995,0.000202,2]
[325305342,1714688190377,2393.38163531,0.00020201,2]
[325305343,1714688190560,730.93144096,0.00020201,2]
[325305344,1714688190609,189.27193209,0.00020201,2]
[325305345,1714688190640,797.0029603,0.00020201,2]
[325305346,1714688191124,241.79685319,0.00020201,2]
[325305347,1714688191823,981.70512266,0.00020201,2]
[325305348,1714688194548,156.84902945,0.000202,2]
[325305349,1714688195912,2151.16096719,0.000202,2]
[325305350,1714688197176,314.91170855,0.000202,2]
[325305351,1714688197730,154.79876161,0.000202,2]
[325305352,1714688201216,160.732729,0.00019178,2]
[325305356,1714688262338,3000.0,0.00019212,2]
[325305357,1714688264651,166.11934562,0.00020109,2]
[325305358,1714688269642,166.11934559,0.0002011,2]
[325305359,1714688274756,166.11934559,0.0002011,2]
[325305360,1714688277680,1160.06996026,0.00020102,2]
[325305361,1714688279668,166.11934559,0.00020111,2]
[325305363,1714688284659,166.11934559,0.00020111,2]
[325305364,1714688287328,250.0,0.00019209,2]
[325305365,1714688289667,166.11934559,0.00020112,2]
[325305366,1714688294645,166.11934559,0.00020112,2]
[325305367,1714688297985,562.92,0.00020199,3]
[325305368,1714688324659,186.38755187,0.00020201,2]
[325305369,1714688327390,2102.02562717,0.00020201,2]
[325305370,1714688327625,475.3846747,0.00020201,2]
[325305371,1714688329399,2393.38163531,0.00020201,2]
[325305372,1714688331512,939.76545707,0.00020201,2]
[325305373,1714688337934,200.0,0.0002,2]
[325305374,1714688340147,241.79685319,0.00020201,2]
[325305375,1714688361196,412.33320126,0.00020201,2]
[325305376,1714688361632,5462.53125909,0.00020201,2]
[325305377,1714688363567,154.79876161,0.00020201,2]
[325305378,1714688364604,15678.27203672,0.00020201,2]
[325305379,1714688368392,308.93521701,0.00020201,2]
[325305380,1714688370162,473.07523748,0.00020201,2]
[325305381,1714688372889,330.1061491,0.00020201,2]
[325305382,1714688376339,1892.53392773,0.00020201,2]
[325305383,1714688382286,258.46009814,0.00020201,2]
[325305384,1714688383740,59236.59789083,0.00020201,2]
[325305385,1714688385311,24900.0,0.00019209,2]
[325305386,1714688386155,471.69705771,0.00020201,2]
[325305387,1714688387603,157.96527869,0.00020201,2]
[325305388,1714688390063,20203.63437207,0.00020201,2]
[325305389,1714688391572,330.1061491,0.00020201,2]
[325305390,1714688396363,1892.49634483,0.00020201,2]
[325305392,1714688399812,59236.59789083,0.00020201,2]
[325305393,1714688407207,200.11832451,0.00020201,2]
[325305394,1714688408368,2844.37790263,0.00020201,2]
[325305395,1714688410867,550.09434991,0.00020201,2]
[325305396,1714688410897,330.1061491,0.00020201,2]
[325305397,1714688415735,28166.82009656,0.00020201,2]
[325305398,1714688428890,329.53131967,0.00020201,2]
[325305399,1714688432397,452.35474627,0.00019178,2]
[325305400,1714688432432,500.0,0.00019178,2]
[325305401,1714688432462,257.96284001,0.00019178,2]
[325305402,1714688432492,500.0,0.00019178,2]
[325305403,1714688432524,267.37145314,0.00019178,2]
[325305404,1714688432553,500.0,0.00019178,2]
[325305405,1714688432587,500.0,0.00019178,2]
[325305406,1714688432758,500.0,0.00019178,2]
[325305407,1714688432798,500.0,0.00019178,2]
[325305408,1714688432828,500.0,0.00019178,2]
[325305409,1714688432874,227.13813177,0.00019178,2]
[325305410,1714688433003,500.0,0.00019178,2]
[325305411,1714688433056,500.0,0.00019178,2]
[325305412,1714688433169,500.0,0.00019178,2]
[325305413,1714688433233,500.0,0.00019178,2]
[325305414,1714688433297,500.0,0.00019178,2]
[325305415,1714688433379,534.38861563,0.00019178,2]
[325305416,1714688433418,500.0,0.00019178,2]
[325305417,1714688433448,500.0,0.00019178,2]
[325305418,1714688433494,381.17257532,0.00019178,2]
[325305419,1714688433544,500.0,0.00019178,2]
[325305420,1714688433578,500.0,0.00019178,2]
[325305421,1714688433620,500.0,0.00019178,2]
[325305422,1714688433659,500.0,0.00019178,2]
[325305423,1714688433746,500.0,0.00019178,2]
[325305424,1714688433810,500.0,0.00019178,2]
[325305425,1714688433863,500.0,0.00019178,2]
[325305426,1714688433924,500.0,0.00019178,2]
[325305427,1714688433958,500.0,0.00019178,2]
[325305428,1714688433994,500.0,0.00019178,2]
[325305429,1714688434037,500.0,0.00019178,2]
[325305430,1714688434072,500.0,0.00019178,2]
[325305431,1714688434103,500.0,0.00019178,2]
[325305432,1714688434138,500.0,0.00019178,2]
[325305433,1714688434179,500.0,0.00019178,2]
[325305434,1714688434236,500.0,0.00019178,2]
[325305435,1714688440731,500.0,0.00019178,2]
[325305436,1714688440761,501.01296909,0.00019178,2]
[325305437,1714688440803,430.01696316,0.00019178,2]
[325305438,1714688440894,500.0,0.00019178,2]
[325305439,1714688440941,500.0,0.00019178,2]
[325305440,1714688440996,500.0,0.00019178,2]
[325305441,1714688441031,646.72056895,0.00019178,2]
[325305442,1714688441069,500.0,0.00019178,2]
[325305443,1714688441104,500.0,0.00019178,2]
[325305444,1714688441156,500.0,0.00019178,2]
[325305445,1714688441190,500.0,0.00019178,2]
[325305446,1714688441227,500.0,0.00019178,2]
[325305447,1714688441264,500.0,0.00019178,2]
[325305448,1714688441303,500.0,0.00019178,2]
[325305449,1714688441339,500.0,0.00019178,2]
[325305450,1714688441373,500.0,0.00019178,2]
[325305451,1714688441416,500.0,0.00019178,2]
[325305452,1714688441455,500.0,0.00019178,2]
[325305453,1714688441487,500.0,0.00019178,2]
[325305454,1714688441520,500.0,0.00019178,2]
[325305455,1714688441549,500.0,0.00019178,2]
[325305456,1714688441583,500.0,0.00019178,2]
[325305457,1714688441613,500.0,0.00019178,2]
[325305458,1714688441643,645.60341725,0.00019178,2]
[325305459,1714688441677,500.0,0.00019178,2]
[325305460,1714688447668,186.38755187,0.00020201,2]
[325305461,1714688451600,500.0,0.00019178,2]
[325305462,1714688451804,500.0,0.00019178,2]
[325305463,1714688451842,500.0,0.00019178,2]
[325305464,1714688451877,500.0,0.00019178,2]
[325305465,1714688451912,500.0,0.00019178,2]
[325305466,1714688451962,500.0,0.00019178,2]
[325305467,1714688451995,500.0,0.00019178,2]
[325305468,1714688452030,500.0,0.00019178,2]
[325305469,1714688452113,500.0,0.00019178,2]
[325305470,1714688452207,500.0,0.00019178,2]
[325305471,1714688452256,500.0,0.00019178,2]